Cogmind - Beta 16 @@@ ROGUE MODE // 2025.11.13 @ 00:51:09 Player: UberDoot Result: Core destroyed Performance ------------- Evolutions (4) 2000 Regions Visited (13) 2600 Robots Destroyed (144) 720 Value Destroyed (5516) 5516 Prototype IDs (34) 680 Alien Tech Used (0) 0 Bonus (2978) 2978 TOTAL SCORE: 14494 Bonus ------- High Alert Combat Kills 278 Entered Garrisons 400 Used RIF Installer 1500 Entered DSFs 500 Aligned with FarCom 300 Cogmind --------- Core Integrity 0/850 Matter 11/300 Energy 130/130 System Corruption 11% Temperature Critical (1398) Movement Core (1750) Ox34 Location -6/DSF Parts ------- > --- POWER (2) -------- Compressor-Nuclear Core > --- PROPULSION (4) --- Light Treads Light Treads Wheeled VSS-VSS Exoskeleton > --- UTILITY (6) ------ Scrap Engine Huge Storage Unit Experimental Hacking Suite Experimental Hacking Suite Experimental Hacking Suite > --- WEAPON (3) ------- Advanced Assault Cannon Advanced Assault Cannon Advanced Assault Cannon > --- INVENTORY (25) --- Fusion Compressor Heat Sink Advanced Heat Sink Huge Storage Unit Small Matter Pod (0) Improved Hacking Suite Experimental Hacking Suite Relay Coupler [Grunt] (29) Relay Coupler [Grunt] (28) Relay Coupler [Sentry] (24) Relay Coupler [Demolisher] (26) Relay Coupler [Specialist] (21) High-powered Tractor Beam Gauss Rifle XL Autogun Array Advanced Assault Cannon Mini Grenade Launcher Scatter Rocket Array Plasma Cutter Flail Peak State ------------ > --- POWER ------------ Compressor-Nuclear Core > --- PROPULSION ------- Wheeled VSS-VSS Exoskeleton Armored Huge Wheel > --- UTILITY ---------- Scrap Engine Huge Storage Unit Experimental Hacking Suite Experimental Hacking Suite Experimental Hacking Suite > --- WEAPON ----------- Advanced Assault Cannon Advanced Assault Cannon Advanced Assault Cannon > --- INVENTORY -------- Fusion Compressor Light Treads Light Treads Heat Sink Advanced Heat Sink Huge Storage Unit Small Matter Pod Improved Hacking Suite Experimental Hacking Suite Relay Coupler [Grunt] Relay Coupler [Grunt] Relay Coupler [Sentry] Relay Coupler [Demolisher] Relay Coupler [Specialist] High-powered Tractor Beam Gauss Rifle XL Autogun Array Advanced Assault Cannon Mini Grenade Launcher Scatter Rocket Array Plasma Cutter Flail [Rating: 83] Favorites ----------- Power Improved Ion Engine Engine Improved Ion Engine Power Core Constructs Propulsion Light Treads Treads Light Treads Leg Aluminum Leg Wheel Compact Wheel Utility Huge Storage Unit Device Armored Scrap Engine Storage Huge Storage Unit Processor Advanced Targeting Computer Hackware Relay Coupler [NC] Protection Light Armor Plating Weapon Advanced Assault Cannon Energy Gun Medium Laser Energy Cannon Beam Cannon Ballistic Gun Light Assault Rifle Ballistic Cannon Advanced Assault Cannon Launcher Mini Grenade Launcher Special Weapon Remote Datajack Impact Weapon Makeshift Hammer Build | -11 -10 -10 -10 -9 -8 -8 -8 -8 -8 -6 -6 -6 -6 ------- Run | Yrd Mat Min Exi Min Mat Gar Mat Sto Rec Fac Gar Fac DSF Slots Evolved 8 | . . . . . 4 . . . . 4 . . . Power 1 | . . . . . . . . . . 1 . . . Propulsion 2 | . . . . . . . . . . 2 . . . Utility 4 | . . . . . 3 . . . . 1 . . . Weapon 1 | . . . . . 1 . . . . . . . . Parts Attached 107 | 8 12 7 . 5 9 9 23 . 8 3 5 . 18 Power 9 | 2 1 1 . 1 . 1 1 . 1 . . . 1 Engine 8 | 2 1 1 . 1 . 1 1 . 1 . . . . Core 1 | . . . . . . . . . . . . . 1 Reactor . | . . . . . . . . . . . . . . Propulsion 28 | 2 3 2 . . 1 2 8 . 2 . . . 8 Treads 13 | . 3 1 . . . 1 4 . 2 . . . 2 Leg 3 | 2 . . . . . . 1 . . . . . . Wheel 12 | . . 1 . . 1 1 3 . . . . . 6 Hover . | . . . . . . . . . . . . . . Flight . | . . . . . . . . . . . . . . Utility 37 | 2 6 . . 2 5 2 8 . 3 2 3 . 4 Device 15 | 1 4 . . . 1 1 2 . 2 1 2 . 1 Storage 6 | 1 2 . . 2 1 . . . . . . . . Processor 3 | . . . . . 1 . 1 . . 1 . . . Hackware 6 | . . . . . . . 2 . . . 1 . 3 Protection 7 | . . . . . 2 1 3 . 1 . . . . Artifact . | . . . . . . . . . . . . . . Weapon 33 | 2 2 4 . 2 3 4 6 . 2 1 2 . 5 Energy Gun 6 | . 1 2 . 1 1 . 1 . . . . . . Energy Cannon 1 | . . 1 . . . . . . . . . . . Ballistic Gun 6 | 2 1 1 . 1 1 . . . . . . . . Ballistic Cannon 13 | . . . . . . 2 4 . 2 . . . 5 Launcher 3 | . . . . . . 2 . . . . 1 . . Special Weapon 2 | . . . . . . . 1 . . . 1 . . Impact Weapon 2 | . . . . . 1 . . . . 1 . . . Slashing Weapon . | . . . . . . . . . . . . . . Piercing Weapon . | . . . . . . . . . . . . . . Special Melee Weapon . | . . . . . . . . . . . . . . Unidentified Prototypes 4 | . . . . . . . 1 . 1 . 1 . 1 Parts Lost 45 | . 2 4 . . . 5 16 . 3 3 2 . 10 Power 7 | . . 1 . . . 1 2 . . 1 . . 2 Propulsion 13 | . . 2 . . . 2 7 . 1 . . . 1 Utility 15 | . 2 . . . . 1 4 . 2 1 1 . 4 Weapon 10 | . . 1 . . . 1 3 . . 1 1 . 3 Highest Loss Streak 10 | . 1 3 . . . 3 10 . 3 2 1 . 6 To Critical Strikes 2 | . . 1 . . . . 1 . . . . . . Average Backups 17 | 5 13 14 13 16 20 21 19 20 19 17 20 22 21 Power 1 | . 1 1 1 1 1 . 1 1 1 1 1 1 . Propulsion 2 | 1 2 1 2 2 4 4 3 4 3 1 . 2 1 Utility 7 | 1 5 7 6 8 7 7 7 6 6 6 10 12 11 Weapon 5 | 1 3 4 4 3 7 6 5 7 6 5 5 6 6 Tool/Special . | . . . . . . . . . . . . . . Unused Backups 47 | 3 1 3 3 3 . 6 3 . 3 5 . . 17 Power 5 | . 1 . . . . . 1 . . 1 . . 2 Propulsion 9 | 2 . . . 1 . 1 . . 2 3 . . . Utility 19 | 1 . 2 1 2 . 3 . . . . . . 10 Weapon 13 | . . 1 2 . . 2 2 . 1 1 . . 4 Tool/Special 1 | . . . . . . . . . . . . . 1 Average Slot Usage (%) 80 | . 99 99 100 100 98 99 78 81 77 57 54 46 61 Engine 8 | . 14 13 14 14 9 8 5 . 7 2 4 6 2 Treads 9 | . 23 17 14 14 . 1 1 . 14 . 2 . 2 Wheel 7 | . . 10 14 14 18 15 11 18 3 5 . . 11 Device 11 | . 13 14 14 14 15 9 4 9 14 13 9 6 6 Storage 9 | . 14 14 14 14 9 9 9 9 9 6 6 6 6 Processor 6 | . . . . . 8 9 9 9 9 8 13 13 8 Hackware 1 | . . . . . . . 9 9 1 . 3 . 5 Protection 3 | . . . . . 10 18 5 9 3 . . . . Energy Gun 7 | . 11 22 28 27 9 5 6 9 1 . . . 2 Ballistic Gun 4 | . 16 3 . . 12 8 . . . . 6 6 . Ballistic Cannon 5 | . . . . . . 4 11 9 13 7 . . 11 Peak Build Rating 83 | 8 8 10 13 17 26 34 34 28 54 67 71 59 83 Average Rating 34 | 5 7 9 11 13 23 27 28 28 43 59 63 59 65 On Entrance 28 | . 8 8 10 13 17 26 34 28 28 47 60 59 59 Avg Prop Armor Cover (%) 13 | . . 14 14 13 . 6 10 . . 12 . . 10 Naked Turns . | . . . . . . . . . . . . . . Heaviest Build 123 | 13 29 31 31 94 105 111 113 104 114 104 109 106 123 Greatest Support 82 | 20 40 40 16 16 26 28 40 22 44 73 82 60 56 Greatest Overweight (x) 34 | . 1 1 1 5 4 9 29 4 9 8 1 1 34 Average Overweight (x) 2 | . . . 1 3 3 4 4 4 2 1 1 1 2 Largest Inventory Capacity 25 | 8 15 15 15 25 25 25 25 25 25 25 25 25 25 Average Capacity 21 | 7 14 15 15 20 25 25 25 25 25 25 25 25 25 Most Carried 25 | 8 15 15 15 25 25 25 25 23 25 23 25 25 25 Average Carried 20 | 5 13 14 14 19 23 24 22 23 23 20 23 24 24 Final Capacity 25 | 8 15 15 15 25 25 25 25 25 25 25 25 25 25 Final Carried 25 | 8 15 15 15 25 25 25 23 23 22 19 25 25 23 Scrap Engine Consumption 66 | . . . . . . . . . 11 31 10 1 13 Constructs Created 7 | . . . . . . . . . 1 4 . . 2 Constructs Modified 19 | . . . . . . . . . . 12 6 . 1 Class Distribution -------------------- 48% | Mutant 20% | Construct 15% | Skirmisher 4% | Scavenger-Mutant 3% | Bothacker-Construct 3% | Scavenger-Tank Dominant Class ---------------- Mutant | -10/Materials Mutant | -10/Mines Mutant | -10/Exiles Mutant | -9/Mines Scavenger-Mutant | -8/Materials Scavenger-Tank | -8/Garrison Skirmisher | -8/Materials Skirmisher | -8/Storage Mutant | -8/Recycling Construct | -6/Factory Construct | -6/Garrison Construct | -6/Factory Mutant | -6/DSF Resources | -11 -10 -10 -10 -9 -8 -8 -8 -8 -8 -6 -6 -6 -6 ----------- Run | Yrd Mat Min Exi Min Mat Gar Mat Sto Rec Fac Gar Fac DSF Matter Collected 4164 | 335 295 121 . 80 132 413 964 . 368 576 304 50 526 Remotely 81 | . . . . . . . . . . . . . 81 Salvage Created 4871 | 130 839 324 . 54 132 350 951 . 350 805 415 . 521 Parts 256 | 17 41 20 . 5 10 35 48 . 10 30 17 . 23 Haulers Intercepted 3 | . 2 . . . . . . . . 1 . . . Recyclers Shooed 8 | . 4 . . . . . 1 . . 3 . . . Parts Field Recycled . | . . . . . . . . . . . . . . Retrieved Matter . | . . . . . . . . . . . . . . Parts Self-Destructed . | . . . . . . . . . . . . . . Prevented . | . . . . . . . . . . . . . . Parts Restored . | . . . . . . . . . . . . . . Kills | -11 -10 -10 -10 -9 -8 -8 -8 -8 -8 -6 -6 -6 -6 ------- Run | Yrd Mat Min Exi Min Mat Gar Mat Sto Rec Fac Gar Fac DSF Combat Hostiles Destroyed 107 | . 14 12 . . 2 27 18 . 4 10 8 . 12 Melee 3 | . . . . . . 3 . . . . . . . Guns 39 | . 14 9 . . 2 4 2 . . . 5 . 3 Cannons 37 | . . 3 . . . 4 10 . 4 9 . . 7 AOE 23 | . . . . . . 13 6 . . . 3 . 1 Classes Destroyed 21 | 2 5 2 . . 2 2 4 . 2 . 1 . 1 Worker 6 | . . 1 . 1 . . 1 . . 3 . . . Builder 7 | . 1 . . . . . 4 . . 2 . . . Tunneler 6 | 4 . 1 . 1 . . . . . . . . . Hauler 3 | . 2 . . . . . . . . 1 . . . Recycler 13 | 1 3 . . . . . 4 . 2 3 . . . Mechanic 2 | . . . . . . . 2 . . . . . . Operator 1 | . . . . . . . 1 . . . . . . Watcher 4 | . 3 . . . 1 . . . . . . . . Swarmer 34 | . 6 3 . . . 18 3 . . . . . 4 Cutter 4 | . . . . . . 4 . . . . . . . Grunt 33 | . 8 4 . . . . 9 . . 4 3 . 5 Brawler 3 | . . . . . . . 1 . . . 1 . 1 Duelist 2 | . . . . . . . 1 . . . 1 . . Sentry 9 | . . . . . 1 3 3 . 1 1 . . . Specialist 3 | . . . . . . . . . . . 2 . 1 Hunter 2 | . . . . . 1 . 1 . . . . . . Programmer 8 | . . . . . . 2 . . . 5 1 . . Heavy 1 | . . . . . . . . . . . . . 1 Scientist 2 | . . . . . . . . . 2 . . . . Scrapper 3 | . . . . . . . . . 3 . . . . Assembled 5 | . . 5 . . . . . . . . . . . Best Kill Streak 9 | 2 6 5 . 2 2 5 9 . 3 4 3 . 5 Combat Bots Only 7 | . 3 5 . . 2 5 7 . 1 3 3 . 5 Max Kills in Single Turn 4 | 1 1 1 . 1 1 4 3 . 1 2 1 . 1 Gunslinging . | . . . . . . . . . . . . . . Exploded 4 | . . . . . . 4 3 . . . 1 . 1 Melee 1 | . . . . . . 1 . . . . . . . Uniques/NPCs Destroyed . | . . . . . . . . . . . . . . Combat | -11 -10 -10 -10 -9 -8 -8 -8 -8 -8 -6 -6 -6 -6 -------- Run | Yrd Mat Min Exi Min Mat Gar Mat Sto Rec Fac Gar Fac DSF Hostile Shots Fired 901 | . 71 54 . . 10 81 189 . 27 136 182 . 151 Missed 269 | . 19 12 . . 2 24 43 . 5 45 66 . 53 Hits 632 | . 52 42 . . 8 57 146 . 22 91 116 . 98 Melee 18 | . . 2 . . . 2 2 . . . 10 . 2 Projectile 614 | . 52 40 . . 8 55 144 . 22 91 106 . 96 AOE 2 | . . . . . . 2 . . . . . . . Critical Strikes 33 | . 1 3 . . . 3 9 . 4 6 3 . 4 Part Disruptions 5 | . . 1 . . . . 1 . . . . . 3 Damage Taken 10559 | . 536 509 . 22 91 900 2605 . 468 1496 1719 . 2213 Core 1665 | . 106 87 . . 13 47 419 . 20 140 176 . 657 Absorbed by Shields . | . . . . . . . . . . . . . . Ignored by Resistances 25 | . . . . . . . . . 25 . . . . Regen/Repaired (Parts) 1366 | . 27 . . . . . 77 . . 506 756 . . Core Remaining (%) 43 | 100 . . . 22 . . . . 9 . . . . Volleys Fired 437 | 35 90 35 . 2 6 36 65 . 16 49 70 . 33 Largest 3 | 2 2 2 . 2 3 3 3 . 3 3 1 . 3 Hottest 145 | 40 70 115 . 115 135 102 145 . 120 126 50 . 130 Shots Fired 794 | 70 180 70 . 4 18 70 95 . 41 104 70 . 72 Gun 458 | 70 180 58 . 4 18 34 19 . 3 1 60 . 11 Cannon 301 | . . 12 . . . 22 66 . 38 103 . . 60 Launcher 25 | . . . . . . 14 4 . . . 6 . 1 Special 10 | . . . . . . . 6 . . . 4 . . Kinetic 572 | 70 115 16 . . 9 44 66 . 38 94 60 . 60 Thermal 187 | . 65 54 . 4 9 12 19 . 3 10 . . 11 Explosive 25 | . . . . . . 14 4 . . . 6 . 1 Electromagnetic . | . . . . . . . . . . . . . . Robot Hit Streak 24 | 11 11 10 . 3 14 9 10 . 8 15 24 . 12 Robot Miss Streak 8 | 5 8 3 . . 2 2 4 . 2 3 5 . 3 Penetration Max . | . . . . . . . . . . . . . . Secondary Targets 2 | . 1 1 . . . . . . . . . . . Max Gunslinging Chain 1 | . 1 1 . . . . . . . . . . . Shots Hit Robots 527 | 39 115 44 . 2 15 47 59 . 30 78 55 . 43 Core Hits 249 | 11 39 25 . 2 6 25 43 . 9 32 26 . 31 Critical Kills 2 | . 2 . . . . . . . . . . . . Critical Parts Destroyed 4 | . 1 . . . . 2 . . . 1 . . . Critical Strikes 28 | . 7 5 . . . 3 7 . . 4 . . 2 Burn 10 | . 4 5 . . . . 1 . . . . . . Destroy 3 | . 3 . . . . . . . . . . . . Blast 12 | . . . . . . 1 6 . . 3 . . 2 Smash 3 | . . . . . . 2 . . . 1 . . . Melee Attacks 44 | . . . . . 8 22 1 . . 13 . . . Impact 44 | . . . . . 8 22 1 . . 13 . . . Slashing . | . . . . . . . . . . . . . . Piercing . | . . . . . . . . . . . . . . Sneak Attacks 1 | . . . . . . 1 . . . . . . . Combat Hostiles . | . . . . . . . . . . . . . . Follow-up Attacks . | . . . . . . . . . . . . . . Damage Inflicted 14069 | 328 1113 562 . 38 226 2021 2361 . 923 2304 2241 . 1952 Guns 4267 | 326 1109 420 . 38 195 320 221 . 18 . 1442 . 178 Cannons 5992 | . . 142 . . . 456 1177 . 905 2187 . . 1125 Explosions 3312 | . . . . . . 901 963 . . . 799 . 649 Melee 492 | . . . . . 31 344 . . . 117 . . . Ramming 6 | 2 4 . . . . . . . . . . . . Kinetic 8413 | 326 587 101 . . 93 674 1177 . 905 1983 1442 . 1125 Thermal 1958 | . 522 461 . 38 102 102 333 . 18 204 . . 178 Explosive 3200 | . . . . . . 901 851 . . . 799 . 649 Electromagnetic . | . . . . . . . . . . . . . . Impact 492 | . . . . . 31 344 . . . 117 . . . Slashing . | . . . . . . . . . . . . . . Piercing . | . . . . . . . . . . . . . . Highest Corruption 11 | . . . . . . . 1 1 1 4 6 6 11 Average Corruption 3 | . . . . . . . 1 1 1 3 5 6 8 Corruption Purged . | . . . . . . . . . . . . . . Corruption Blocked . | . . . . . . . . . . . . . . Effects 105 | . . . . . . . 7 . 15 24 37 4 18 Message Errors 31 | . . . . . . . 2 . 4 12 8 2 3 Matter Fused 23 | . . . . . . . 1 . 5 1 10 . 6 Heat Flow Errors 12 | . . . . . . . 2 . 1 1 6 1 1 Energy Discharges 9 | . . . . . . . 1 . . 1 4 . 3 Parts Rejected 1 | . . . . . . . . . . 1 . . . Parts Fused 2 | . . . . . . . . . . 2 . . . Data Loss (minor) 12 | . . . . . . . . . 2 3 6 . 1 Data Loss (major) 8 | . . . . . . . . . 1 2 3 1 1 Misfires 4 | . . . . . . . 1 . 2 1 . . . Alerts 2 | . . . . . . . . . . . . . 2 Weapon Failures 1 | . . . . . . . . . . . . . 1 Overload Shots . | . . . . . . . . . . . . . . Overflow Damage 551 | . . . . . . 204 104 . 74 169 . . . Projectiles 227 | . . . . . . 15 19 . 74 119 . . . Explosions 111 | . . . . . . 26 85 . . . . . . Melee 213 | . . . . . . 163 . . . 50 . . . Knockbacks 51 | . . . . . . 5 9 . 10 20 . . 7 Impact . | . . . . . . . . . . . . . . Kinetic 47 | . . . . . . 5 9 . 9 17 . . 7 Secondary 4 | . . . . . . . . . 1 3 . . . Self-Inflicted Damage 824 | . . . . . . 120 422 . . . 207 . 75 Shots 26 | . . . . . . 3 7 . . . 11 . 5 Rammed . | . . . . . . . . . . . . . . Targets Rammed 3 | 2 1 . . . . . . . . . . . . Kicked 2 | 2 . . . . . . . . . . . . . Crushed 1 | . 1 . . . . . . . . . . . . Highest Temperature 1398 | . 108 196 . 54 135 101 224 . 386 211 298 217 1398 Average Temperature 112 | . 22 45 . 31 51 48 41 . 132 54 90 119 531 Received Heat Transfer 3219 | . 198 242 . 9 9 81 981 . 349 567 378 . 405 Effects 42 | . . . . . . . 1 . 2 . . . 39 Shutdowns 6 | . . . . . . . . . 1 . . . 5 Energy Bleed 4 | . . . . . . . 1 . 1 . . . 2 Interference 2 | . . . . . . . . . . . . . 2 Matter Decay 9 | . . . . . . . . . . . . . 9 Short Circuit 3 | . . . . . . . . . . . . . 3 Damage (minor) 1 | . . . . . . . . . . . . . 1 Damage (major) 13 | . . . . . . . . . . . . . 13 Damage (core) 4 | . . . . . . . . . . . . . 4 Siege Activations . | . . . . . . . . . . . . . . Martial Activations . | . . . . . . . . . . . . . . Shielding Activations . | . . . . . . . . . . . . . . Robots Disrupted . | . . . . . . . . . . . . . . Combat Hostiles . | . . . . . . . . . . . . . . Robots Corrupted 4 | . . . . . . 3 . . . 1 . . . Combat Hostiles 4 | . . . . . . 3 . . . 1 . . . Parts Fried 7 | . . . . . . 6 . . . 1 . . . Impact Corruptions 9 | . . . . . . 7 . . . 2 . . . Robots Melted . | . . . . . . . . . . . . . . Combat Hostiles . | . . . . . . . . . . . . . . Parts Melted 8 | . 3 2 . . . . 2 . 1 . . . . Heat Transferred 5193 | . 1813 1591 . 111 259 259 642 . 37 222 . . 259 Parts Sabotaged . | . . . . . . . . . . . . . . Parts Stolen . | . . . . . . . . . . . . . . Parts Stripped . | . . . . . . . . . . . . . . Power Chain Reactions . | . . . . . . . . . . . . . . Alert | -11 -10 -10 -10 -9 -8 -8 -8 -8 -8 -6 -6 -6 -6 ------- Run | Yrd Mat Min Exi Min Mat Gar Mat Sto Rec Fac Gar Fac DSF Maximum Alert Level 3 | . . . . . . 3 2 . . 1 2 1 1 Low Security (%) 73 | 100 100 100 . 100 100 18 47 100 100 86 17 . 38 Level 1 16 | . . . . . . 29 25 . . 13 64 100 61 Level 2 7 | . . . . . . 27 27 . . . 17 . . Level 3 2 | . . . . . . 24 . . . . . . . Level 4 . | . . . . . . . . . . . . . . Level 5 . | . . . . . . . . . . . . . . High Security . | . . . . . . . . . . . . . . Max Security . | . . . . . . . . . . . . . . Sterilizations 1 | . . . . . . . . . . . . . 1 Peak Influence 1063 | 5 93 70 . 5 50 1063 518 188 57 300 507 266 385 Initial 518 | . . 10 . . . 13 518 188 57 300 18 266 154 Average 134 | 1 27 7 . . 9 482 247 169 5 106 297 244 243 Influence Increases 4442 | 25 494 185 . 10 74 1100 817 . 205 647 549 5 331 Destroy 0b10 Robot/C 1980 | . 280 140 . . 40 540 360 . 20 200 160 . 240 Destroy 0b10 Robot/NC 225 | 25 45 10 . 10 5 . 55 . 10 45 10 . 10 Destroy Leader 324 | . 60 30 . . 22 20 80 . . 72 10 . 30 Allied During Kill 5 | . . 5 . . . . . . . . . . . Successful Hack 67 | . 19 . . . . 14 11 . 4 . 14 5 . Select Force Hacks 180 | . 30 . . . . . . . 150 . . . . Disable Machine 150 | . . . . . . 45 60 . 15 . 30 . . Anti-Garrison Action 700 | . . . . . . 350 150 . . . 200 . . Destroy Structure 256 | . . . . . 7 71 101 . 6 15 50 . 6 Advance Influence 300 | . . . . . . . . . . 300 . . . Lose Combat Pursuer 255 | . 60 . . . . 60 . . . 15 75 . 45 Influence Decreases 4057 | 25 466 155 58 10 53 58 1433 299 353 620 69 291 167 Entered New Map 1296 | . . 18 58 . . 8 545 259 91 . 9 241 67 Time Decay 2140 | 25 446 97 . 10 53 . 568 40 261 590 . 50 . Lost Part 381 | . 20 . . . . 50 160 . 1 30 20 . 100 Lost Ally 90 | . . 40 . . . . 10 . . . 40 . . Purge Threat 150 | . . . . . . . 150 . . . . . . Squads Dispatched 15 | . 2 . . . 1 . 2 1 . 7 . . 2 Investigation 2 | . 1 . . . . . . . . 1 . . . Extermination 4 | . . . . . . . . . . 4 . . . Reinforcement 7 | . 1 . . . 1 . . 1 . 2 . . 2 Assault 2 | . . . . . . . 2 . . . . . . Garrison . | . . . . . . . . . . . . . . Intercept . | . . . . . . . . . . . . . . Searches Triggered . | . . . . . . . . . . . . . . Construction Impeded 1 | . . . . . . . . . . 1 . . . Haulers Reinforced 1 | . . . . . . . . . . 1 . . . Active Scanning Responses . | . . . . . . . . . . . . . . Cargo Convoy Interrupts . | . . . . . . . . . . . . . . Stealth | -11 -10 -10 -10 -9 -8 -8 -8 -8 -8 -6 -6 -6 -6 --------- Run | Yrd Mat Min Exi Min Mat Gar Mat Sto Rec Fac Gar Fac DSF Distress Signals 5 | . . . . . 1 . 4 . . . . . . Communications Jammed . | . . . . . . . . . . . . . . Distress Signals . | . . . . . . . . . . . . . . Times Spotted 164 | . 30 19 . 2 4 26 31 1 4 17 14 . 16 Peak Tracking Total 8 | . 4 8 . 1 2 4 8 1 4 4 4 . 7 Tactical Retreats 15 | . 3 3 . . . 3 . . . 1 2 . 3 Traps | -11 -10 -10 -10 -9 -8 -8 -8 -8 -8 -6 -6 -6 -6 ------- Run | Yrd Mat Min Exi Min Mat Gar Mat Sto Rec Fac Gar Fac DSF Traps Triggered 8 | . . . . . . 2 1 . . . 2 . 3 Indirectly . | . . . . . . . . . . . . . . Trap Hack Attempts . | . . . . . . . . . . . . . . Triggered . | . . . . . . . . . . . . . . Disarmed . | . . . . . . . . . . . . . . Reprogrammed . | . . . . . . . . . . . . . . Reused . | . . . . . . . . . . . . . . Traps Extracted . | . . . . . . . . . . . . . . Installed . | . . . . . . . . . . . . . . Triggered . | . . . . . . . . . . . . . . Machines | -11 -10 -10 -10 -9 -8 -8 -8 -8 -8 -6 -6 -6 -6 ---------- Run | Yrd Mat Min Exi Min Mat Gar Mat Sto Rec Fac Gar Fac DSF Machines Disabled 21 | . . . . . . 9 5 . 2 . 4 . 1 Max in Single Turn 2 | . . . . . . 2 2 . 1 . 1 . 1 Garrison Access 1 | . . . . . . . 1 . . . . . . Garrison Relay 8 | . . . . . . 6 . . . . 2 . . Machines Repaired . | . . . . . . . . . . . . . . Machines Dismantled . | . . . . . . . . . . . . . . Machines Sabotaged . | . . . . . . . . . . . . . . Overloaded Fab Kills . | . . . . . . . . . . . . . . Hacking | -11 -10 -10 -10 -9 -8 -8 -8 -8 -8 -6 -6 -6 -6 --------- Run | Yrd Mat Min Exi Min Mat Gar Mat Sto Rec Fac Gar Fac DSF Machines Accessed 34 | . 8 . 1 . 2 1 7 1 10 2 1 1 . Terminals 21 | . 6 . . . 1 1 5 1 4 1 1 1 . Fabricators . | . . . . . . . . . . . . . . Repair Stations 2 | . 1 . . . . . 1 . . . . . . Recycling Units 6 | . 1 . . . . . . . 5 . . . . Scanalyzers . | . . . . . . . . . . . . . . Garrison Access 3 | . . . . . 1 . 1 . . 1 . . . Total Hacks 81 | . 26 . 1 . 3 1 22 1 20 4 1 2 . Successful 49 | . 15 . 1 . 1 1 12 . 16 1 1 1 . Failed 31 | . 10 . . . 2 . 10 1 4 3 . 1 . Catastrophic 5 | . 1 . . . . . 2 . . 2 . . . Database Lockouts 1 | . 1 . . . . . . . . . . . . Manual 56 | . 19 . 1 . 2 . 12 3 16 3 . . . Terminals 57 | . 22 . . . 2 1 17 1 10 1 1 2 . Fabricators . | . . . . . . . . . . . . . . Repair Stations 4 | . 2 . . . . . 2 . . . . . . Recycling Units 10 | . 2 . . . . . . . 8 . . . . Scanalyzers . | . . . . . . . . . . . . . . Garrison Access 7 | . . . . . 1 . 3 . . 3 . . . Terminal Hacks 11 | . 3 . 1 . . 1 2 . 2 . 1 1 . Part Schematic 1 | . 1 . . . . . . . . . . . . Robot Analysis 1 | . 1 . . . . . . . . . . . . Prototype ID Bank 1 | . 1 . . . . . . . . . . . . Open DSF 1 | . . . . . . . . . . . . 1 . Unreport Threat 1 | . . . . . . . 1 . . . . . . Locate Traps 1 | . . . . . . . 1 . . . . . . Garrison Registry 1 | . . . . . . 1 . . . . . . . Patrol Navigation 1 | . . . . . . . . . . . 1 . . Proto ID Catalog 1 | . . . 1 . . . . . . . . . . Release Object 2 | . . . . . . . . . 2 . . . . Fabricator Hacks . | . . . . . . . . . . . . . . Repair Station Hacks 4 | . 2 . . . . . 2 . . . . . . Scan Component 2 | . 1 . . . . . 1 . . . . . . Repair 2 | . 1 . . . . . 1 . . . . . . Recycling Unit Hacks 3 | . 1 . . . . . . . 2 . . . . Retrieve Components 3 | . 1 . . . . . . . 2 . . . . Scanalyzer . | . . . . . . . . . . . . . . Garrison Access Hacks 3 | . . . . . 1 . 1 . . 1 . . . Unlock Access 3 | . . . . . 1 . 1 . . 1 . . . Unauthorized Hacks 28 | . 9 . . . . . 7 . 12 . . . . Terminals 21 | . 8 . . . . . 6 . 7 . . . . Assimilate 1 | . . . . . . . 1 . . . . . . Botnet 8 | . 3 . . . . . 2 . 3 . . . . Skim 12 | . 5 . . . . . 3 . 4 . . . . Fabricators . | . . . . . . . . . . . . . . Repair Stations . | . . . . . . . . . . . . . . Recycling Units 6 | . 1 . . . . . . . 5 . . . . Tunnel 6 | . 1 . . . . . . . 5 . . . . Scanalyzers . | . . . . . . . . . . . . . . Garrison Access 1 | . . . . . . . 1 . . . . . . Reprogram 1 | . . . . . . . 1 . . . . . . Data Cores Recovered . | . . . . . . . . . . . . . . Used . | . . . . . . . . . . . . . . Hacking Detections 25 | . 7 . . . 1 . 6 1 6 2 1 1 . Full Trace Events 2 | . . . . . . . . . 1 1 . . . Feedback Events . | . . . . . . . . . . . . . . Feedback Blocked . | . . . . . . . . . . . . . . Robot Schematics Acquired . | . . . . . . . . . . . . . . Robots Built . | . . . . . . . . . . . . . . Authchips . | . . . . . . . . . . . . . . Time . | . . . . . . . . . . . . . . Total Robot Build Rating . | . . . . . . . . . . . . . . Part Schematics Acquired 1 | . 1 . . . . . . . . . . . . Parts Built . | . . . . . . . . . . . . . . Authchips . | . . . . . . . . . . . . . . Time . | . . . . . . . . . . . . . . Total Part Build Rating . | . . . . . . . . . . . . . . Part Studies Acquired . | . . . . . . . . . . . . . . Parts Repaired 2 | . 1 . . . . . 1 . . . . . . Time 70 | . 26 . . . . . 44 . . . . . . Parts Recycled . | . . . . . . . . . . . . . . Recycled Matter . | . . . . . . . . . . . . . . Retrieved Matter . | . . . . . . . . . . . . . . Retrieved Components 12 | . 9 . . . . . . . 3 . . . . Parts Scanalyzed . | . . . . . . . . . . . . . . Part Schematics Acquired . | . . . . . . . . . . . . . . Parts Damaged . | . . . . . . . . . . . . . . Bothacking | -11 -10 -10 -10 -9 -8 -8 -8 -8 -8 -6 -6 -6 -6 ------------ Run | Yrd Mat Min Exi Min Mat Gar Mat Sto Rec Fac Gar Fac DSF Used RIF Installer 3 | . . . . . . 2 . . . . 1 . . Command Fork 1 | . . . . . . 1 . . . . . . . Alert ID Control 1 | . . . . . . . . . . . 1 . . Robots Hacked 5 | . . . . . . . 3 . . . 2 . . Non-combat 2 | . . . . . . . 2 . . . . . . Combat 3 | . . . . . . . 1 . . . 2 . . Robot Hacks Applied 5 | . . . . . . . 3 . . . 2 . . block_reporting 1 | . . . . . . . 1 . . . . . . overwrite_iff 1 | . . . . . . . 1 . . . . . . formatsys_low 1 | . . . . . . . 1 . . . . . . formatsys_high 2 | . . . . . . . . . . . 2 . . Relay Couplers Released 30 | . . . . . . 22 2 . . . 6 . . Machine Destruction 30 | . . . . . . 22 2 . . . 6 . . Attached 3 | . . . . . . . 2 . . . 1 . . Fabnet Peak Effective % . | . . . . . . . . . . . . . . Robots Rewired . | . . . . . . . . . . . . . . Allies Hacked . | . . . . . . . . . . . . . . Hacks Repelled . | . . . . . . . . . . . . . . Allies | -11 -10 -10 -10 -9 -8 -8 -8 -8 -8 -6 -6 -6 -6 -------- Run | Yrd Mat Min Exi Min Mat Gar Mat Sto Rec Fac Gar Fac DSF Total Allies 9 | . . 3 . 1 . . 3 . . . 2 . . Largest Group 3 | . . 3 . 1 . . 1 . . . 2 . . Highest-Rated Group 64 | . . 40 . 31 . . 16 . . . 64 . . Highest-Rated Ally 32 | . . 16 . 31 . . 16 . . . 32 . . Total Orders . | . . . . . . . . . . . . . . Ally Attacks 37 | . . 26 . 2 . . 5 . . . 4 . . Total Damage 371 | . . 118 . 44 . . 45 . . . 164 . . Kills 4 | . . 4 . . . . . . . . . . . Allies Corrupted . | . . . . . . . . . . . . . . Allies Melted . | . . . . . . . . . . . . . . Intel | -11 -10 -10 -10 -9 -8 -8 -8 -8 -8 -6 -6 -6 -6 ------- Run | Yrd Mat Min Exi Min Mat Gar Mat Sto Rec Fac Gar Fac DSF Active Infowar (turns) 7214 | 18 1763 765 260 1014 271 . 590 90 1896 547 . . . Structural 3123 | . . . . . . . 590 90 1896 547 . . . Seismic 4091 | 18 1763 765 260 1014 271 . . . . . . . . Robot Analysis Total 1 | . 1 . . . . . . . . . . . . Derelict Logs Recovered 4 | . . 3 . 1 . . . . . . . . . Drone Launches . | . . . . . . . . . . . . . . Drone Recoveries . | . . . . . . . . . . . . . . Exploration | -11 -10 -10 -10 -9 -8 -8 -8 -8 -8 -6 -6 -6 -6 ------------- Run | Yrd Mat Min Exi Min Mat Gar Mat Sto Rec Fac Gar Fac DSF Turns Passed 14346 | 286 2038 951 260 1014 343 1243 1702 90 2395 2047 1454 105 418 Spaces Moved 6146 | 144 826 650 223 651 201 643 616 63 826 650 465 38 150 Core 12 | 7 . . . . . . 3 . . . . . 2 Treads 1528 | . 664 85 . . . . 17 . 527 74 152 . 9 Legs 371 | 137 162 . . . . . 72 . . . . . . Wheels 3869 | . . 565 223 651 201 643 524 63 299 561 . . 139 Hover 351 | . . . . . . . . . . . 313 38 . Flight 15 | . . . . . . . . . . 15 . . . Fastest Speed 50 | 50 120 115 115 115 135 135 135 145 145 184 271 271 115 Average Speed 188 | 116 154 120 115 146 137 156 202 145 248 279 271 271 179 Slowest Speed 1750 | 120 240 160 115 175 150 225 1500 145 305 411 271 271 1750 Overloaded Moves . | . . . . . . . . . . . . . . Propulsion Burnouts . | . . . . . . . . . . . . . . Robots Hopped . | . . . . . . . . . . . . . . Potential Cave-ins . | . . . . . . . . . . . . . . Cave-ins Triggered . | . . . . . . . . . . . . . . Exploration Rate (%) 48 | 7 86 95 60 70 18 58 35 16 82 21 53 2 76 Regions Visited 13 Branch Regions 5 Pre-discovered Areas 7 | . 2 . . . . . . . 5 . . . . Known Exits Taken 8 | . 1 1 1 . 1 . 1 1 . 1 . 1 . Unknown Exits Taken 3 | 1 . . . 1 . . . . 1 . . . . Scrap Searched 5 | . . 3 . 2 . . . . . . . . . Spaces Dug 35 | . . . . . 7 7 9 . . 6 6 . . Terrain Destroyed 229 | . . . . . 7 46 120 . 5 13 31 . 7 Melee 14 | . . . . . 7 1 . . . 6 . . . Projectile 43 | . . . . . . . 27 . 5 7 3 . 1 AOE 172 | . . . . . . 45 93 . . . 28 . 6 Terrain Rammed . | . . . . . . . . . . . . . . Walls Destroyed . | . . . . . . . . . . . . . . Machines Disabled . | . . . . . . . . . . . . . . Actions | -11 -10 -10 -10 -9 -8 -8 -8 -8 -8 -6 -6 -6 -6 --------- Run | Yrd Mat Min Exi Min Mat Gar Mat Sto Rec Fac Gar Fac DSF Total 8187 | 204 1430 750 229 711 244 795 976 62 1141 771 590 40 244 Wait 1137 | 2 474 39 . 28 4 34 230 . 267 25 26 . 8 Move 6135 | 143 825 649 222 650 201 642 615 62 825 649 464 38 150 Hop . | . . . . . . . . . . . . . . Pick Up 118 | 11 11 9 2 17 7 18 16 . 9 7 7 1 3 Fast Attach 43 | 7 3 1 . 1 . 1 10 . 2 2 1 . 15 Attach 48 | . 2 4 . . 4 6 13 . 5 6 3 . 5 Detach 29 | . 3 . . . . 1 6 . 3 8 4 . 4 Swap 65 | 1 13 6 . 4 9 14 9 . 4 1 2 . 2 Drop 91 | 3 8 7 5 9 5 13 11 . 10 11 . 1 8 Fire 437 | 35 90 35 . 2 6 36 65 . 16 49 70 . 33 Melee 44 | . . . . . 8 22 1 . . 13 . . . Ram . | . . . . . . . . . . . . . . Kick 2 | 2 . . . . . . . . . . . . . Crush 1 | . 1 . . . . . . . . . . . . Escape Stasis 37 | . . . . . . 8 . . . . 13 . 16 Rewire . | . . . . . . . . . . . . . . Trap . | . . . . . . . . . . . . . . Miscellaneous . | . . . . . . . . . . . . . . Route ------- -11/Scrapyard -10/Materials (discovered 6 exits: *Mat x3 / *Min x2 / *Sub) -10/Mines (discovered 3 exits: *Mat x2 / *Exi) -10/Exiles (discovered 2 exits: *Min x2) -9/Mines (discovered 2 exits: *Mat x2) -8/Materials (discovered 3 exits: Fac / *Sto / Gar) -8/Garrison (discovered 4 exits: *Mat x4) -8/Materials -8/Storage (discovered 2 exits: Fac / *Rec) -8/Recycling -6/Factory (discovered 2 exits: [*Fac] / Gar) -6/Garrison (discovered 2 exits: *Fac x2) -6/Factory -6/DSF (discovered 1 exit: [*Fac]) History --------- Turn | Location | Event 3 | -11/Scrapyard | Discovered new exit (range 16) 287 | -11/Scrapyard | Entered Materials 309 | -10/Materials | Build established: Mutant 437 | -10/Materials | Central database locked down 520 | -10/Materials | Discovered new exit (range 15) 680 | -10/Materials | Repaired Lgt. Assault Rifle 786 | -10/Materials | Discovered new exit (range 15) 909 | -10/Materials | Discovered new exit (range 7) 976 | -10/Materials | Discovered new exit (range 7) 1437 | -10/Materials | Discovered new exit (range 4) 1628 | -10/Materials | Discovered new exit (range 14) 1659 | -10/Materials | Learned location of 1 exit from Storage 1740 | -10/Materials | Learned location of 2 exits from Mines 1809 | -10/Materials | Learned location of 1 exit from Storage 1976 | -10/Materials | Loaded intel: 8 terminal locations 2011 | -10/Materials | Identified exit to Materials 2011 | -10/Materials | Identified exit to Mines 2011 | -10/Materials | Identified exit to Subcaves 2054 | -10/Materials | Learned location of 1 exit from Storage 2106 | -10/Materials | Learned location of Mines (-10) 2166 | -10/Materials | Learned 2 Mines zone layouts 2325 | -10/Materials | Entered Mines 2326 | -10/Mines | Identified exit to Exiles 2338 | -10/Mines | Core integrity fell below 50% 2395 | -10/Mines | Met a Derelict bent on vengeance 2449 | -10/Mines | Learned Materials emergency access door positions 2460 | -10/Mines | Assembled infested the area 2462 | -10/Mines | Assisted by bots powering up and referring to "LRC-V3" 2588 | -10/Mines | Lost 3 parts (2n1w) 2785 | -10/Mines | A weapon hastily lodged in a ceiling crevice suddenly fell to the ground 2841 | -10/Mines | Learned 8 Materials zone layouts 3245 | -10/Mines | Discovered exit to Materials (range 4) 3271 | -10/Mines | Deemed a non-threat by the Exiles lab entrance 3276 | -10/Mines | Entered Exiles 3277 | -10/Exiles | Identified exit to Mines 3317 | -10/Exiles | Met 8R-AWN 3333 | -10/Exiles | Met EX-HEX 3367 | -10/Exiles | Met EX-BIN 3381 | -10/Exiles | Aligned with FarCom system 3382 | -10/Exiles | Given EX-Vault access code 3412 | -10/Exiles | Opened EX-Vault 3423 | -10/Exiles | Found XL Autogun Array 3450 | -10/Exiles | Warned to stay clear of 0b10 Research branches 3485 | -10/Exiles | Met EX-DEC 3536 | -10/Exiles | Left Exiles lab with XL Autogun Array 3536 | -10/Exiles | Entered Mines 3583 | -9/Mines | Learned Materials non-interactive machine intel 3675 | -9/Mines | Discovered new exit (range 14) 4127 | -9/Mines | Discovered new exit (range 8) 4272 | -9/Mines | Received a Mining Laser from a helpful Derelict 4459 | -9/Mines | Joined a pair of Derelicts in attacking an 0b10 outpost 4550 | -9/Mines | Entered Materials 4550 | -8/Materials | Evolved 4 slots: Utility x3, Weapon x1 4551 | -8/Materials | Identified exit to Storage 4552 | -8/Materials | Identified exit to Factory 4554 | -8/Materials | Loaded intel: 45 non-interactive machine locations 4893 | -8/Materials | Identified exit to Garrison 4893 | -8/Materials | Entered Garrison 4926 | -8/Garrison | Installed Relay Interface Framework 4966 | -8/Garrison | Garrison Relay disabled 5102 | -8/Garrison | Triggered checkpoint 5181 | -8/Garrison | Discovered new exit (range 68) 5181 | -8/Garrison | Discovered new exit (range 79) 5181 | -8/Garrison | Discovered new exit (range 42) 5181 | -8/Garrison | Discovered new exit (range 19) 5236 | -8/Garrison | Build established: Scavenger-Tank 5239 | -8/Garrison | Triggered checkpoint 5352 | -8/Garrison | Expanded RIF knowledge: Command Fork 5481 | -8/Garrison | Triggered checkpoint 5560 | -8/Garrison | Lost 3 parts (1n1u1w) 5630 | -8/Garrison | Triggered checkpoint 5707 | -8/Garrison | Garrison Relay disabled 5853 | -8/Garrison | Garrison Relay disabled 5882 | -8/Garrison | Garrison Relay disabled 5996 | -8/Garrison | Garrison Relay disabled 6021 | -8/Garrison | Garrison Relay disabled 6136 | -8/Garrison | Entered Materials 6300 | -8/Materials | Core integrity fell below 50% 6302 | -8/Materials | Lost 10 parts (1p4n2u3w) 6965 | -8/Materials | Repaired Broken Arm. Wheel? 7112 | -8/Materials | Discovered exit to Storage (range 5) 7145 | -8/Materials | Build established: Skirmisher 7401 | -8/Materials | Identified exit to Garrison 7621 | -8/Materials | Core integrity fell below 20% 7644 | -8/Materials | Destroyed 7 combat bots 7838 | -8/Materials | Entered Storage 7839 | -8/Storage | Identified exit to Recycling 7924 | -8/Storage | Used back door to open Recycling access 7928 | -8/Storage | Entered Recycling 8345 | -8/Recycling | Scanned before Scraplab entrance 8358 | -8/Recycling | Angered Scraplab inhabitants 8451 | -8/Recycling | Lost 3 parts (1n2u) 8484 | -8/Recycling | Found Prototype Device 8484 | -8/Recycling | Identified Scrap Engine 8723 | -8/Recycling | Discovered new exit (range 5) 9206 | -8/Recycling | Build established: Mutant 10323 | -8/Recycling | Entered Factory 10323 | -6/Factory | Evolved 4 slots: Power x1, Propulsion x2, Utility x1 10844 | -6/Factory | Found Prototype Launcher 10858 | -6/Factory | Build established: Construct 11026 | -6/Factory | Discovered new exit (range 9) 12336 | -6/Factory | Identified exit to Garrison 12370 | -6/Factory | Entered Garrison 12551 | -6/Garrison | Triggered checkpoint 12657 | -6/Garrison | Garrison Relay disabled 12966 | -6/Garrison | Build established: Bothacker-Construct 12980 | -6/Garrison | Triggered checkpoint 13124 | -6/Garrison | Triggered checkpoint 13284 | -6/Garrison | Triggered checkpoint 13310 | -6/Garrison | Garrison Relay disabled 13399 | -6/Garrison | Discovered new exit (range 11) 13449 | -6/Garrison | Build established: Construct 13564 | -6/Garrison | Triggered checkpoint 13568 | -6/Garrison | Identified Scatter Rocket Array 13738 | -6/Garrison | Discovered new exit (range 13) 13789 | -6/Garrison | Expanded RIF knowledge: Alert ID Control 13824 | -6/Garrison | Entered Factory 13929 | -6/Factory | Identified exit to DSF 13929 | -6/Factory | Entered DSF 14000 | -6/DSF | Additional patrols routed to DSF 14033 | -6/DSF | Discovered new exit (range 13) 14119 | -6/DSF | Core integrity fell below 50% 14147 | -6/DSF | Lost 6 parts (2p1n1u2w) 14205 | -6/DSF | System corruption reached 10% 14216 | -6/DSF | Sterilization system engaged 14220 | -6/DSF | Found Prototype Hackware 14226 | -6/DSF | Found Prototype Hackware 14226 | -6/DSF | Identified Exp. Hacking Suite (x2) 14229 | -6/DSF | Found Exp. Hacking Suite 14232 | -6/DSF | Found Exp. Hacking Suite 14236 | -6/DSF | Ambient heat levels rising (+10) 14242 | -6/DSF | Lost 3 parts (3u) 14251 | -6/DSF | Ambient heat levels rising (+10) 14266 | -6/DSF | Ambient heat levels rising (+10) 14281 | -6/DSF | Ambient heat levels rising (+10) 14296 | -6/DSF | Ambient heat levels rising (+10) 14311 | -6/DSF | Ambient heat levels rising (+10) 14326 | -6/DSF | Ambient heat levels rising (+10) 14339 | -6/DSF | Core integrity fell below 20% 14341 | -6/DSF | Ambient heat levels rising (+10) 14348 | -6/DSF | Core destroyed Last Messages --------------- 14326_ ALERT: Ambient heat levels +10. 14328_ Overheating: Matter decay (-2). 14332_ Overheating: Adv. Assault Cannon damaged (-72). 14335_ Overheating: Core damaged (-85). 14337_ Overheating: System interference. 14337_ Adv. Assault Cannon temporarily disabled. 14339_ Power failure, Compressor-Nuclear Core shutdown. 14339_ Overheating: Core damaged (-153). 14340_ Overheating: Matter decay (-2). 14340_ System corrupted: Energy discharge (-40). 14341_ ALERT: Ambient heat levels +10. 14343_ Overheating: Matter decay (-1). 14347_ Overheating: Scrap Engine damaged (-23). 14347_ Overheating: Huge Storage Unit damaged (-64). 14347_ Overheating: Exp. Hacking Suite damaged (-5). 14348_ Overheating: Core damaged (-161). Map ----- +----------------------------------------------------+ | ?????????????????????? ?????? | | ?????????????????????? ??????? | | ?????????????????????? ??????? | | ?????????????????????## ###????? | | ?????????????????????? #????? | | ?????????????????????? #????? | | ??????????????????????! ?????? | | ??????###############?# % #???#### | | ??????# ## #!!!### ^###===# | | ??????# ## #!!!## ^^^ ##===# | | ??????#== | | ??????#== | | ??????#== | | ??????# *##!!!#== ## ! ! #!!!#? | | ??????# !=##!!!#===## ###????? | | ??????###! ########### !###????? | | ???????#[[![[#??##### [ =#????? | | ???????#[%=[[#?## %=#????? | | ???????#[ [[#?# ### ! =#????? | | ???????##%=##### #?###* ""##????? | | ???????#[ [[#*! ##?# * "%"%##???? | | ???????#[ [[#####??#** ["] " #??? | | ???????##% ###??##??#**= ###### | | ??????### ###??#[[?### [%"## # | | ????###"" ## #[[[### % ### # | | ???#"""""@ = | | ???#"##""< %%[ | | ??????#"""%"## #[[[#!! #===#= | | ??????#"""""#?#######!! ###### | | ??????####"##???????######"##????? | | ?????????#"#?????????????###?????? | | ??????????"#?????????????????????? | | ??????????#??????????????????????? | | ?????????????????????????????????? | | ?????????????????????????????????? | | ?????????????????????????????????? | | ?????????????????????????????????? | | | | | | | | | | | | | | | | | | | | | | | | | | | +----------------------------------------------------+ Best States ------------- Heat Dissipation 56 Energy Generation 35 Energy Capacity 520 Matter Stores 300 Matter Capacity 300 Sight Range 16 Terrain Scan Density 10 Additional Mass Support 9 Armor Coverage 600 Resistance: TH 10 Evasion (%) 55 Targeting Accuracy 13 Recoil Reduction 4 Offensive Hacking 48 Relay Coupler Types 2 Relay Coupler Value 39 Item Schematics ----------------- Huge Storage Unit | -10/Materials | Hacked Robot Schematics ------------------ None Fabricated ------------ Nothing Repaired ---------- Lgt. Assault Rifle | 66% | -10/Materials Arm. Wheel | 23% | -8/Materials | Broken Studied --------- None Alien Tech Used ----------------- None Achievements -------------- Deductive Reasoning Hot Goods Join The Dark Side Mindtrick My Bad Not So Scrappy Scrappetite Sixth Sense You Will Be Upgraded Challenges ------------ None Game ------ Seed ImprinterMasterWings Manual? 0 Play Time 01:18:29 Cumulative 240.9 hours Start 2025.11.09 @ 03:56:56 End 2025.11.13 @ 00:51:09 Sessions 11 Manual Loads 0 Difficulty Rogue Special Mode None Game No. 129 Rogue 129 Adventurer 0 Explorer 0 Win Type - Total 5 Types 3/0/2/0/0/0/0/0/0/0 Lore% 75 Gallery% 71 Achievement% 46 Wizard Run 0 Options --------- Layout 1 ASCII 0 Keyboard 1 Movement Numpad Keybinds 0 Fullscreen 2 Font 24/Terminus Map View 50x40 Zoom Use 0% Tactical HUD 1 Map Filters NONE Filters NONE Steam 1 RUN: 52297e7d-18f8-4e02-bdeb-89273ef56386